Cogmind - Beta 13 @@@ ROGUE MODE // 2024.03.31 @ 04:20:19 Player: karlsu Result: Destroyed by L-31 Rogue with Katana Performance ------------- Evolutions (2) 1000 Regions Visited (5) 1000 Robots Destroyed (155) 775 Value Destroyed (4945) 4945 Prototype IDs (5) 100 Alien Tech Used (0) 0 Bonus (1226) 1226 TOTAL SCORE: 9046 Bonus ------- High Alert Combat Kills 1058 Follower Combat Kills 292 Entered Garrisons 200 Friendly Fire -324 Cogmind --------- Core Integrity 0/550 Matter 183/300 Energy 87/100 System Corruption 0% Temperature Cool (50) Movement Core (450) Ox8 Location -8/Storage Parts ------- > --- POWER (1) -------- (None) > --- PROPULSION (3) --- (None) > --- UTILITY (5) ------ Large Storage Unit Improved Signal Interpreter > --- WEAPON (2) ------- Ion Cannon > --- INVENTORY (15) --- Cooled Deuterium Engine Aluminum Leg System Restoration Module Minigun Assault Cannon Peak State ------------ > --- POWER ------------ Cooled Deuterium Engine > --- PROPULSION ------- Titanium Leg Titanium Leg Titanium Leg > --- UTILITY ---------- Improved Heat Sink Large Storage Unit Improved Sensor Array Improved Signal Interpreter Light Armor Plating > --- WEAPON ----------- Heavy Ion Cannon Heavy Ion Cannon > --- INVENTORY -------- Cooled Deuterium Engine Aluminum Leg Aluminum Leg Aluminum Leg Aluminum Leg Aluminum Leg System Restoration Module Ion Cannon Minigun Minigun Assault Cannon Flak Cannon [Rating: 35] Favorites ----------- Power Light Deuterium Engine Engine Light Deuterium Engine Power Core Light Nuclear Core Propulsion Light Treads Treads Light Treads Leg Aluminum Leg Utility Large Storage Unit Device Sensor Array Storage Large Storage Unit Processor Advanced Targeting Computer Hackware System Shield Protection Hardened Light Armor Plating Weapon Heavy Ion Cannon Energy Gun EM Pulse Gun Energy Cannon Heavy Ion Cannon Ballistic Gun Minigun Ballistic Cannon Assault Cannon Launcher Grenade Launcher Build | -11 -10 -9 -8 -8 -8 ------- Run | Yrd Mat Mat Mat Gar Sto Slots Evolved 4 | . . 2 2 . . Power . | . . . . . . Propulsion 1 | . . 1 . . . Utility 3 | . . 1 2 . . Weapon . | . . . . . . Parts Attached 133 | 8 11 39 36 10 29 Power 15 | 1 3 6 3 1 1 Engine 13 | 1 2 5 3 1 1 Core 2 | . 1 1 . . . Reactor . | . . . . . . Propulsion 52 | 2 . 16 13 6 15 Treads 32 | 2 . 11 13 6 . Leg 20 | . . 5 . . 15 Wheel . | . . . . . . Hover . | . . . . . . Flight . | . . . . . . Utility 31 | 1 3 7 12 1 7 Device 12 | . 1 2 5 1 3 Storage 2 | 1 1 . . . . Processor 4 | . . . 3 . 1 Hackware 1 | . . . . . 1 Protection 12 | . 1 5 4 . 2 Artifact . | . . . . . . Weapon 35 | 4 5 10 8 2 6 Energy Gun 5 | 3 1 1 . . . Energy Cannon 13 | . 1 4 2 2 4 Ballistic Gun 7 | 1 1 1 3 . 1 Ballistic Cannon 9 | . 1 4 3 . 1 Launcher 1 | . 1 . . . . Special Weapon . | . . . . . . Impact Weapon . | . . . . . . Slashing Weapon . | . . . . . . Piercing Weapon . | . . . . . . Special Melee Weapon . | . . . . . . Unidentified Prototypes 3 | . . 2 1 . . Parts Lost 26 | . 2 6 4 3 11 Power 4 | . 1 2 1 . . Propulsion 9 | . . 2 1 2 4 Utility 8 | . . 1 2 1 4 Weapon 5 | . 1 1 . . 3 Highest Loss Streak 9 | . 1 1 2 2 9 To Critical Strikes . | . . . . . . Average Slot Usage (%) 97 | . 95 98 99 100 89 Engine 8 | . 5 10 9 9 8 Core 1 | . 8 . . . . Treads 25 | . 28 27 26 27 6 Leg 2 | . . 4 . . 15 Device 11 | . 6 11 11 16 14 Storage 10 | . 14 11 9 9 9 Processor 5 | . . . 10 18 12 Protection 8 | . 2 10 13 1 5 Energy Cannon 8 | . 3 9 3 15 16 Ballistic Gun 4 | . 10 1 7 1 . Ballistic Cannon 6 | . 6 9 7 1 . Naked Turns . | . . . . . . Heaviest Build 52 | 14 35 41 49 51 52 Greatest Support 66 | 40 40 66 66 62 60 Greatest Overweight (x) 13 | . . 13 1 . 6 Average Overweight (x) . | . . . . . 1 Largest Inventory Capacity 15 | 8 15 15 15 15 15 Average Capacity 13 | 7 9 15 15 15 15 Most Carried 15 | 2 8 15 15 15 15 Average Carried 10 | 1 5 12 13 12 11 Final Capacity 15 | 8 15 15 15 15 15 Final Carried 14 | 2 8 14 12 13 5 Class Distribution -------------------- 64% | Mutant 35% | Scavenger-Mutant Dominant Class ---------------- Mutant | -10/Materials Mutant | -9/Materials Mutant | -8/Materials Scavenger-Mutant | -8/Garrison Scavenger-Mutant | -8/Storage Resources | -11 -10 -9 -8 -8 -8 ----------- Run | Yrd Mat Mat Mat Gar Sto Matter Collected 3490 | 231 560 1029 1268 250 152 Remotely . | . . . . . . Salvage Created 5436 | . 752 1713 1522 700 749 Parts 312 | . 60 107 95 26 24 Haulers Intercepted . | . . . . . . Recyclers Shooed 1 | . . 1 . . . Parts Field Recycled . | . . . . . . Retrieved Matter . | . . . . . . Parts Self-Destructed . | . . . . . . Prevented . | . . . . . . Kills | -11 -10 -9 -8 -8 -8 ------- Run | Yrd Mat Mat Mat Gar Sto Combat Hostiles Destroyed 112 | . 20 36 32 18 6 Guns 23 | . 8 5 8 1 1 Cannons 84 | . 7 31 24 17 5 AOE 5 | . 5 . . . . Classes Destroyed 11 | . 5 4 2 . . Worker 11 | . 4 2 5 . . Builder 8 | . 1 1 3 . 3 Tunneler 1 | . . 1 . . . Recycler 12 | . . 4 2 . 6 Operator 1 | . . . 1 . . Watcher 10 | . 2 3 5 . . Swarmer 15 | . 3 4 3 4 1 Grunt 71 | . 17 20 17 14 3 Duelist 5 | . . 2 2 . 1 Sentry 20 | . . 10 9 . 1 Hunter 1 | . . . 1 . . Best Kill Streak 10 | . 5 5 7 8 10 Combat Bots Only 8 | . 3 4 5 8 4 Max Kills in Single Turn 2 | . 2 1 2 1 2 Gunslinging . | . . . . . . Exploded 2 | . 2 . . . . Melee . | . . . . . . Uniques/NPCs Destroyed . | . . . . . . Combat | -11 -10 -9 -8 -8 -8 -------- Run | Yrd Mat Mat Mat Gar Sto Hostile Shots Fired 615 | . 89 157 165 129 75 Missed 181 | . 30 45 53 37 16 Damage Taken 6435 | . 604 1489 1695 1247 1400 Core 792 | . 90 150 136 201 215 Absorbed by Shields 121 | . 69 52 . . . Redirected to Shielding 12 | . 10 2 . . . Ignored by Resistances 84 | . . . 84 . . Regen/Repaired (Parts) 263 | . . 118 145 . . Core Remaining (%) 75 | 100 64 62 . . . Volleys Fired 394 | . 78 111 113 68 24 Largest 2 | . 2 2 2 2 2 Hottest 150 | . 95 150 150 130 130 Shots Fired 763 | . 135 219 226 136 47 Gun 202 | . 82 25 78 11 6 Cannon 553 | . 45 194 148 125 41 Launcher 8 | . 8 . . . . Special . | . . . . . . Kinetic 452 | . 102 132 184 28 6 Thermal 288 | . 11 86 42 108 41 Explosive 8 | . 8 . . . . Electromagnetic 15 | . 14 1 . . . Robot Hit Streak 15 | . 9 15 10 9 12 Robot Miss Streak 9 | . 9 5 6 4 1 Penetration Max . | . . . . . . Secondary Targets 1 | . 1 . . . . Max Gunslinging Chain 1 | . 1 . . . . Shots Hit Robots 460 | . 68 123 155 81 33 Core Hits 269 | . 38 57 110 42 22 Critical Kills . | . . . . . . Critical Parts Destroyed . | . . . . . . Critical Strikes 7 | . 1 4 2 . . Blast 7 | . 1 4 2 . . Melee Attacks . | . . . . . . Impact . | . . . . . . Slashing . | . . . . . . Piercing . | . . . . . . Sneak Attacks . | . . . . . . Combat Hostiles . | . . . . . . Follow-up Attacks . | . . . . . . Damage Inflicted 10066 | . 1298 2413 3372 1995 988 Guns 2142 | . 575 283 983 195 106 Cannons 7536 | . 336 2130 2389 1800 881 Explosions 376 | . 376 . . . . Melee . | . . . . . . Ramming 12 | . 11 . . . 1 Kinetic 5414 | . 685 1420 2722 481 106 Thermal 4122 | . 104 973 650 1514 881 Explosive 376 | . 376 . . . . Electromagnetic 142 | . 122 20 . . . Impact . | . . . . . . Slashing . | . . . . . . Piercing . | . . . . . . Highest Corruption 1 | . 1 . 1 . . Average Corruption 1 | . 1 . 1 . . Corruption Purged 1 | . . . 1 . . Corruption Blocked 10 | . . . . 10 . Effects 14 | . 11 . 3 . . Message Errors 6 | . 5 . 1 . . Matter Fused 2 | . 1 . 1 . . Energy Discharges 3 | . 2 . 1 . . Data Loss (minor) 1 | . 1 . . . . Misfires 1 | . 1 . . . . Alerts 1 | . 1 . . . . Overload Shots . | . . . . . . Overflow Damage 47 | . 7 5 13 18 4 Projectiles 47 | . 7 5 13 18 4 Explosions . | . . . . . . Melee . | . . . . . . Knockbacks 69 | . 2 12 41 14 . Impact . | . . . . . . Kinetic 66 | . 1 12 40 13 . Secondary 3 | . 1 . 1 1 . Self-Inflicted Damage 43 | . 43 . . . . Shots 2 | . 2 . . . . Rammed 3 | . 2 1 . . . Targets Rammed 4 | . 2 1 . . 1 Kicked 1 | . . . . . 1 Crushed . | . . . . . . Highest Temperature 513 | . 196 476 513 212 62 Average Temperature 91 | . 47 99 145 61 20 Received Heat Transfer 2637 | . 257 589 891 630 270 Effects 22 | . . 7 15 . . Shutdowns 4 | . . 2 2 . . Energy Bleed 4 | . . 2 2 . . Interference 7 | . . . 7 . . Matter Decay 3 | . . 2 1 . . Short Circuit 2 | . . 1 1 . . Damage (major) 2 | . . . 2 . . Siege Activations . | . . . . . . Robots Corrupted . | . . . . . . Combat Hostiles . | . . . . . . Parts Fried . | . . . . . . Impact Corruptions . | . . . . . . Robots Melted . | . . . . . . Combat Hostiles . | . . . . . . Parts Melted 8 | . . 4 . 3 1 Heat Transferred 6020 | . 222 1776 962 1960 1100 Parts Sabotaged . | . . . . . . Parts Stolen . | . . . . . . Parts Stripped . | . . . . . . Power Chain Reactions . | . . . . . . Alert | -11 -10 -9 -8 -8 -8 ------- Run | Yrd Mat Mat Mat Gar Sto Peak Influence 1514 | . 289 682 957 1514 1167 Initial 737 | . . 102 287 622 737 Average 520 | . 158 438 613 1073 972 Maximum Alert Level 4 | . 1 2 3 4 4 Low Security (%) 20 | 100 61 9 . . . Level 1 19 | . 38 29 11 . . Level 2 35 | . . 60 57 11 . Level 3 17 | . . . 31 45 75 Level 4 7 | . . . . 42 24 Level 5 . | . . . . . . High Security . | . . . . . . Max Security . | . . . . . . Squads Dispatched 19 | . 5 5 6 . 3 Investigation 8 | . 4 2 2 . . Extermination . | . . . . . . Reinforcement 5 | . 1 2 2 . . Assault 3 | . . 1 . . 2 Garrison 3 | . . . 2 . 1 Intercept . | . . . . . . Searches Triggered . | . . . . . . Construction Impeded . | . . . . . . Haulers Reinforced . | . . . . . . Active Scanning Responses . | . . . . . . Cargo Convoy Interrupts . | . . . . . . Stealth | -11 -10 -9 -8 -8 -8 --------- Run | Yrd Mat Mat Mat Gar Sto Distress Signals 13 | . 5 1 3 . 4 Communications Jammed . | . . . . . . Distress Signals . | . . . . . . Times Spotted 172 | . 26 50 49 20 27 Peak Tracking Total 9 | . 4 7 7 5 9 Tactical Retreats 5 | . . 3 1 . 1 Traps | -11 -10 -9 -8 -8 -8 ------- Run | Yrd Mat Mat Mat Gar Sto Traps Triggered 10 | . 1 2 2 . 5 Indirectly . | . . . . . . Trap Hack Attempts . | . . . . . . Triggered . | . . . . . . Disarmed . | . . . . . . Reprogrammed . | . . . . . . Reused . | . . . . . . Traps Extracted . | . . . . . . Installed . | . . . . . . Triggered . | . . . . . . Machines | -11 -10 -9 -8 -8 -8 ---------- Run | Yrd Mat Mat Mat Gar Sto Machines Disabled 15 | . 4 4 5 1 1 Max in Single Turn 1 | . 1 1 1 1 . Garrison Relay 1 | . . . . 1 . Machines Repaired . | . . . . . . Machines Dismantled . | . . . . . . Machines Sabotaged . | . . . . . . Overloaded Fab Kills . | . . . . . . Hacking | -11 -10 -9 -8 -8 -8 --------- Run | Yrd Mat Mat Mat Gar Sto Machines Accessed 32 | . 6 8 12 3 3 Terminals 21 | . 5 4 6 3 3 Fabricators . | . . . . . . Repair Stations 4 | . 1 1 2 . . Recycling Units 3 | . . 2 1 . . Scanalyzers 3 | . . 1 2 . . Garrison Access 1 | . . . 1 . . Total Hacks 113 | . 22 27 48 5 11 Successful 60 | . 7 19 28 1 5 Failed 53 | . 15 8 20 4 6 Catastrophic 9 | . 3 . 4 2 . Database Lockouts . | . . . . . . Manual 3 | . 2 . 1 . . Terminals 77 | . 20 12 29 5 11 Fabricators . | . . . . . . Repair Stations 16 | . 2 8 6 . . Recycling Units 9 | . . 4 5 . . Scanalyzers 10 | . . 3 7 . . Garrison Access 1 | . . . 1 . . Terminal Hacks 36 | . 7 7 16 1 5 Record 13 | . 3 5 5 . . Prototype ID Bank 1 | . . 1 . . . Open Door 1 | . . . . . 1 Emergency Access Points 2 | . 1 . 1 . . Alert Level 5 | . 1 . 3 . 1 Locate Traps 2 | . . . 1 . 1 Dispatch Records 2 | . 1 . 1 . . Maintenance Status 2 | . 1 . 1 . . Transport Status 1 | . . . 1 . . Investigation Status 3 | . . 1 1 . 1 Assault Status 1 | . . . . . 1 Recall Reinforcements 1 | . . . 1 . . Registered Components 1 | . . . 1 . . Garrison Registry 1 | . . . . 1 . Fabricator Hacks . | . . . . . . Repair Station Hacks 11 | . . 7 4 . . Scan Component 7 | . . 4 3 . . Repair 4 | . . 3 1 . . Recycling Unit Hacks 5 | . . 3 2 . . Report Inventory 3 | . . 2 1 . . Retrieve Matter 1 | . . . 1 . . Retrieve Components 1 | . . 1 . . . Scanalyzer 7 | . . 2 5 . . Insert Component 4 | . . 1 3 . . Analyze 3 | . . 1 2 . . Garrison Access Hacks 1 | . . . 1 . . Unlock Access 1 | . . . 1 . . Unauthorized Hacks . | . . . . . . Terminals . | . . . . . . Fabricators . | . . . . . . Repair Stations . | . . . . . . Recycling Units . | . . . . . . Scanalyzers . | . . . . . . Garrison Access . | . . . . . . Data Cores Recovered 1 | . . . 1 . . Used . | . . . . . . Hacking Detections 25 | . 6 4 11 2 2 Full Trace Events 14 | . 5 2 5 2 . Feedback Events 2 | . 1 . 1 . . Corruption 2 | . 1 . 1 . . Feedback Blocked . | . . . . . . Robot Schematics Acquired . | . . . . . . Robots Built . | . . . . . . Authchips . | . . . . . . Time . | . . . . . . Total Robot Build Rating . | . . . . . . Part Schematics Acquired 3 | . . 1 2 . . Parts Built . | . . . . . . Authchips . | . . . . . . Time . | . . . . . . Total Part Build Rating . | . . . . . . Parts Repaired 4 | . . 3 1 . . Time 167 | . . 129 38 . . Parts Recycled . | . . . . . . Recycled Matter . | . . . . . . Retrieved Matter . | . . . . . . Retrieved Components 9 | . . 9 . . . Parts Scanalyzed 3 | . . 1 2 . . Part Schematics Acquired 3 | . . 1 2 . . Parts Damaged . | . . . . . . Bothacking | -11 -10 -9 -8 -8 -8 ------------ Run | Yrd Mat Mat Mat Gar Sto Used RIF Installer . | . . . . . . Robots Hacked . | . . . . . . Non-combat . | . . . . . . Combat . | . . . . . . Robot Hacks Applied . | . . . . . . Relay Couplers Released 5 | . . . . 5 . Machine Destruction 5 | . . . . 5 . Fabnet Peak Effective % . | . . . . . . Robots Rewired . | . . . . . . Allies Hacked . | . . . . . . Hacks Repelled . | . . . . . . Allies | -11 -10 -9 -8 -8 -8 -------- Run | Yrd Mat Mat Mat Gar Sto Total Allies 3 | . . . . 1 2 Largest Group 3 | . . . . 1 3 Highest-Rated Group 208 | . . . . 146 208 Highest-Rated Ally 146 | . . . . 146 146 Total Orders . | . . . . . . Ally Attacks 30 | . . . . . 30 Total Damage 1659 | . . . . . 1659 Kills 13 | . . . . . 13 Allies Corrupted . | . . . . . . Allies Melted . | . . . . . . Intel | -11 -10 -9 -8 -8 -8 ------- Run | Yrd Mat Mat Mat Gar Sto Robot Analysis Total . | . . . . . . Derelict Logs Recovered . | . . . . . . Drone Launches . | . . . . . . Drone Recoveries . | . . . . . . Exploration | -11 -10 -9 -8 -8 -8 ------------- Run | Yrd Mat Mat Mat Gar Sto Turns Passed 8500 | 529 1481 2936 1866 1138 550 Spaces Moved 3698 | 96 686 1407 826 512 171 Core 9 | 2 . 2 . . 5 Treads 3401 | 94 686 1227 826 512 56 Legs 288 | . . 178 . . 110 Wheels . | . . . . . . Hover . | . . . . . . Flight . | . . . . . . Fastest Speed 50 | 50 160 145 145 155 120 Average Speed 160 | 157 160 158 154 159 215 Slowest Speed 700 | 160 160 700 225 160 400 Overloaded Moves . | . . . . . . Propulsion Burnouts . | . . . . . . Robots Hopped . | . . . . . . Cave-ins Triggered . | . . . . . . Exploration Rate (%) 62 | 12 82 91 75 80 32 Regions Visited 5 Branch Regions 1 Pre-discovered Areas . | . . . . . . Known Exits Taken 1 | . . . 1 . . Unknown Exits Taken 3 | 1 1 1 . . . Scrap Searched . | . . . . . . Spaces Dug . | . . . . . . Terrain Destroyed 71 | . 30 17 16 . 8 Melee . | . . . . . . Projectile 41 | . . 17 16 . 8 AOE 30 | . 30 . . . . Terrain Rammed . | . . . . . . Walls Destroyed . | . . . . . . Machines Disabled . | . . . . . . Actions | -11 -10 -9 -8 -8 -8 --------- Run | Yrd Mat Mat Mat Gar Sto Total 5501 | 473 935 1891 1200 698 304 Wait 1102 | 362 136 264 178 99 63 Move 3693 | 95 685 1406 825 511 171 Hop . | . . . . . . Pick Up 115 | 8 15 44 28 7 13 Fast Attach 5 | . 1 1 1 . 2 Attach 55 | 6 4 14 8 3 20 Detach 1 | . 1 . . . . Swap 73 | 2 6 24 27 7 7 Drop 59 | . 7 26 20 3 3 Fire 394 | . 78 111 113 68 24 Melee . | . . . . . . Ram . | . . . . . . Kick 1 | . . . . . 1 Crush 3 | . 2 1 . . . Escape Stasis . | . . . . . . Rewire . | . . . . . . Trap . | . . . . . . Miscellaneous . | . . . . . . Route ------- -11/Scrapyard -10/Materials (discovered 3 exits: *Mat x2 / [*Min]) -9/Materials (discovered 5 exits: *Mat x3 / [*Min x2]) -8/Materials (discovered 5 exits: *Fac x2 / *Sto x2 / Gar) -8/Garrison (discovered 4 exits: *Sto x4) -8/Storage History --------- Turn | Location | Event 10 | -11/Scrapyard | Discovered new exit (range 15) 530 | -11/Scrapyard | Entered Materials 531 | -10/Materials | Build established: Mutant 892 | -10/Materials | Discovered new exit (range 15) 1287 | -10/Materials | Discovered new exit (range 12) 1478 | -10/Materials | Discovered new exit (range 12) 2011 | -10/Materials | Entered another Materials area 2011 | -9/Materials | Evolved 2 slots: Propulsion x1, Utility x1 2266 | -9/Materials | Discovered new exit (range 9) 2460 | -9/Materials | Discovered new exit (range 8) 2931 | -9/Materials | Discovered new exit (range 5) 3046 | -9/Materials | Build established: Scavenger-Mutant 3508 | -9/Materials | Discovered new exit (range 16) 3654 | -9/Materials | Discovered new exit (range 7) 3967 | -9/Materials | Build established: Mutant 4291 | -9/Materials | Repaired Broken Hvy. Particle Cannon 4411 | -9/Materials | First assault squad dispatched 4413 | -9/Materials | Repaired Adv. Treads 4519 | -9/Materials | Repaired Lgt. Deuterium Engine 4947 | -9/Materials | Entered another Materials area 4947 | -8/Materials | Evolved 2 slots: Utility x2 5689 | -8/Materials | Discovered new exit (range 15) 5997 | -8/Materials | Discovered new exit (range 7) 6135 | -8/Materials | Discovered new exit (range 15) 6160 | -8/Materials | Garrison activated, responded to threat 6207 | -8/Materials | Repaired Adv. Treads 6250 | -8/Materials | Discovered new exit (range 6) 6765 | -8/Materials | Garrison activated, responded to threat 6781 | -8/Materials | Identified exit to Factory 6812 | -8/Materials | Identified exit to Garrison 6813 | -8/Materials | Build established: Scavenger-Mutant 6813 | -8/Materials | Entered Garrison 6848 | -8/Garrison | Triggered checkpoint 6924 | -8/Garrison | Triggered checkpoint 7004 | -8/Garrison | Triggered checkpoint 7029 | -8/Garrison | Warlord forces raided the area 7035 | -8/Garrison | Destroyed 8 combat bots 7072 | -8/Garrison | Triggered checkpoint 7098 | -8/Garrison | Triggered checkpoint 7144 | -8/Garrison | Discovered new exit (range 13) 7144 | -8/Garrison | Discovered new exit (range 103) 7144 | -8/Garrison | Discovered new exit (range 72) 7144 | -8/Garrison | Discovered new exit (range 68) 7182 | -8/Garrison | Triggered checkpoint 7190 | -8/Garrison | Triggered checkpoint 7467 | -8/Garrison | Garrison Relay disabled 7539 | -8/Garrison | Rescued HV-R5K 7594 | -8/Garrison | Identified exit to Storage 7757 | -8/Garrison | Core integrity fell below 50% 7862 | -8/Garrison | Triggered checkpoint 7951 | -8/Garrison | Entered Storage 7951 | -8/Storage | Accompanied by 1 ally (HV-R5K) 8437 | -8/Storage | Met a pair of Derelict thieves 8475 | -8/Storage | Garrison activated, responded to threat 8497 | -8/Storage | Core integrity fell below 20% 8501 | -8/Storage | Destroyed by L-31 Rogue with Katana Last Messages --------------- Hvy. Ion Cannon destroyed. R-06 Scavenger collects Lgt. Nuclear Core. M-13 Machinist fits Backup Propulsion I on L-31 Rogue. Minigun destroyed. Titanium Leg severed. R-06 Scavenger collects Prototype Energy Gun. Aluminum Leg destroyed. M-13 Machinist repairs Imp. Aluminum Leg. R-06 Scavenger collects Titanium Leg. M-13 Machinist repairs L-31 Rogue. Hvy. Ion Cannon severed. R-06 Scavenger collects Carbon-fiber Leg. Aluminum Leg severed. Cld. Deuterium Engine severed. R-06 Scavenger collects Aluminum Leg. Aluminum Leg severed. L-31 Rogue destroyed. Aluminum Leg destroyed. [Achievement: 5k Club] Map ----- +----------------------------------------------------+ | ???????????????????????????????? | | ???????????????????????????????? | | ???????????????????????????????? | | ???????????????????????????????? | | ???????????????????????????????? | | ???????????????????????????????? | | ???????????????????????????????? | | ???????????????????????????????? | | ???????????????????????????????? | | ???????????????????????????????? | | ???????????????????????????????? | | ????????????????? ???????????? | | ????????????????# ???????????? | | ????????????????# ???????????? | | ????????????????# ???????????? | | ????????????????# ???????????? | | ???????????????? ???????????? | | ????????????????# ???????????? | | ????????????????# #??????????? | | ????????????????# #??????????? | | ????????????????# #??????????? | | ????????????????# #??######??? | | ????????????????# ####*=%=#??? | | ????????????????# ##T#r=%*#??? | | ?? ?????????????# # "g*=%#??? | | ?? ???????????" + %+%mgl@==#??? | | ?? ?????????????# # r"li=%#??? | | ?? ?????????????# # #]!==#??? | | ?? ?????????????# #########??? | | ?? ?????????????# #??????????? | | ?? ?############# #??????????? | | ?# ## # #??????????? | | ?# ## # #??????????? | | ?# ## # #??????????? | | ?# ## # #??????????? | | ?# ## + #???? ?????? | | ?# ## # #####+#????? | | ## ## % # #????? | | ## ########+##### ##### #????? | | %%%% % %%==* *% ##??? ?????? | | [#+###########+###+#####? ?????? | | =* ????###??# ## ?????? | | ?????????# %# #????? | | """????????# """ """ ## #????? | | """ "??????# """ """ ## #????? | | """ ##?????# """ """ ## #????? | | #??????# """ """ ## #????? | | #######??????# """ """ ## #????? | | #??????????# ## #????? | | #??????????#########+"" #????? | +----------------------------------------------------+ Best States ------------- Heat Dissipation 53 Energy Generation 18 Energy Capacity 310 Matter Stores 300 Matter Capacity 300 Sight Range 16 Robot Scan Range 15 Terrain Scan Density 10 Armor Coverage 300 Resistance: TH 10 Core Shielding 20 Evasion (%) 45 Targeting Accuracy 8 Recoil Reduction 3 Defensive Hacking 10 Item Schematics ----------------- Adv. Treads | -9/Materials | Scanalyzed Minigun | -8/Materials | Scanalyzed Hvy. Ion Cannon | -8/Materials | Scanalyzed Robot Schematics ------------------ None Fabricated ------------ Nothing Alien Tech Used ----------------- None Achievements -------------- 5k Club GoHome() I Spy Librarian One Hack Too Far Risk Taker Significant Disruption Troublemaker Challenges ------------ None Game ------ Seed LightSchematicCompressor Manual? 0 Play Time 01:50:11 Cumulative 10.2 hours Start 2024.03.31 @ 01:30:35 End 2024.03.31 @ 04:20:19 Sessions 1 Manual Loads 0 Difficulty Rogue Special Mode None Game No. 14 Rogue 13 Adventurer 0 Explorer 1 Win Type - Total 0 Types 0/0/0/0/0/0/0/0/0 Lore% 2 Gallery% 10 Achievement% 5 Wizard Run 0 Options --------- Layout 1 ASCII 0 Keyboard 0 Movement Mouse Keybinds 0 Fullscreen 1 Font 24/Smallcaps Map View 50x35 Zoom Use 1% Tactical HUD 0 Map Filters NONE Filters NONE Steam 1 RUN: 8ae74648-7870-404e-ab26-a55781c77b3e